fUST/lending_fUST_20250414
["ID","MTS","AMOUNT","RATE_DAILY","PERIOD"]
[357932507,1744593040150,-6830.13729493,0.0002869,2]
[357932554,1744593045899,-2451.0,0.0002869,2]
[357932600,1744594232102,-690.47253353,0.00026814,2]
[357932602,1744594232112,-500.0,0.00026836,2]
[357932604,1744594232122,-160.0,0.0002686,2]
[357932606,1744594232132,-263.47189369,0.000269,7]
[357932608,1744594232141,-300.0,0.00026912,2]
[357932610,1744594232151,-300.0,0.00026912,2]
[357932612,1744594232161,-500.0,0.00026913,2]
[357932614,1744594232170,-577.8198207,0.00026913,2]
[357932616,1744594232180,-6617.85068527,0.00026913,3]
[357932618,1744594232189,-31580.11900541,0.00026914,2]
[357932620,1744594232202,-5054.24831435,0.00026914,2]
[357932622,1744594232212,-24531.550565,0.00026914,2]
[357932625,1744594232223,-250.0,0.00027065,2]
[357932627,1744594232233,-500.0,0.00027178,2]
[357932629,1744594232242,-160.0,0.00027228,2]
[357932631,1744594232252,-263.47189353,0.00027348,7]
[357932633,1744594232261,-500.0,0.00027396,2]
[357932635,1744594232273,-182.64986728,0.00027396,2]
[357932638,1744594232283,-500.0,0.00027397,2]
[357932641,1744594232292,-370.00351394,0.00027397,2]
[357932687,1744594238301,-129.99648606,0.00027397,2]
[357932689,1744594238312,-631.98,0.00027397,2]
[357932709,1744594238323,-281.48441195,0.00027397,2]
[357932711,1744594238503,-218.51558805,0.00027397,2]
[357932713,1744594238513,-263.30506178,0.00027397,2]
[357932716,1744594238523,-393.21624997,0.00027397,2]
[357932718,1744594238533,-114.01230288,0.00027397,2]
[357932828,1744594243397,-385.98769712,0.00027397,2]
[357932829,1744594243407,-186.49922343,0.00027397,2]
[357932830,1744594243419,-220.15307945,0.00027397,5]
[357932831,1744594243437,-279.84692055,0.00027397,5]
[357932832,1744594243448,-263.47189353,0.00027797,7]
[357932833,1744594243459,-492.10039159,0.00027905,2]
[357932834,1744594243470,-800.0,0.00028,2]
[357932835,1744594243481,-1440.0,0.00028,2]
[357932836,1744594243492,-862.0,0.00028,2]
[357932837,1744594243503,-243.96481147,0.00028245,7]
[357932845,1744594246190,-19.50708206,0.00028245,7]
[357932846,1744594246200,-500.0,0.00028303,2]
[357932847,1744594246209,-304.0,0.000285,2]
[357932848,1744594246218,-500.0,0.00028505,2]
[357932849,1744594246228,-884.59808215,0.00028573,2]
[357932850,1744594246240,-732.47163102,0.00028573,2]
[357932851,1744594246249,-151.0,0.00028573,2]
[357932852,1744594246258,-152.84166929,0.00028573,2]
[357932853,1744594246269,-152.42355317,0.00028573,2]
[357932854,1744594246278,-210.2535157,0.00028573,2]
[357932855,1744594246287,-1033.85258576,0.0002858,2]
[357932856,1744594246296,-290.34197081,0.00028588,2]
[357932857,1744594246307,-209.65802919,0.00028588,2]
[357932858,1744594246316,-577.01709451,0.00028589,2]
[357932859,1744594246325,-7228.12350385,0.0002859,2]
[357932860,1744594246336,-4307.47274476,0.0002859,2]
[357932872,1744594520162,23194.15,0.00023,30]
[357932906,1744595432138,-195.1335575,0.00025882,2]
[357932907,1744595432148,-500.0,0.00026209,2]
[357932908,1744595432157,-500.0,0.0002627,2]
[357932909,1744595432167,-500.0,0.00026382,2]
[357932910,1744595432176,-500.0,0.00026746,2]
[357932911,1744595432185,-748.65557628,0.00026776,2]
[357932912,1744595432194,-165.51146419,0.00026818,2]
[357932913,1744595432206,-160.0,0.0002685,2]
[357932915,1744595432216,-300.0,0.00026858,2]
[357932916,1744595432225,-12525.30748765,0.00026859,2]
[357932918,1744595432235,-419.71244257,0.00026859,2]
[357932920,1744595432245,-500.0,0.00026873,2]
[357932922,1744595432254,-173.06255046,0.00026873,2]
[357932924,1744595432263,-500.0,0.00026873,2]
[357932926,1744595432274,-508.85905657,0.00026876,2]
[357932928,1744595432283,-500.0,0.00026876,2]
[357932930,1744595432292,-500.0,0.00026876,2]
[357932932,1744595432301,-500.0,0.00026876,2]
[357932933,1744595432311,-563.92043182,0.00026876,2]
[357932935,1744595432320,-500.0,0.00026876,2]
[357932937,1744595432329,-394.3193824,0.00026876,2]
[357932939,1744595432338,-500.0,0.00026876,2]
[357932941,1744595432347,-500.0,0.00026876,2]
[357932943,1744595432356,-500.0,0.00026876,2]
[357932945,1744595432365,-500.0,0.00026876,2]
[357932947,1744595432374,-154.93704742,0.00026876,2]
[357932949,1744595432383,-500.0,0.00026876,2]
[357932951,1744595432392,-500.0,0.00026876,2]
[357932953,1744595432401,-500.0,0.00026876,2]
[357932955,1744595432410,-500.0,0.00026876,2]
[357932957,1744595432419,-500.0,0.00026876,2]
[357932959,1744595432429,-500.0,0.00026876,2]
[357932961,1744595432437,-500.0,0.00026876,2]
[357932963,1744595432447,-500.0,0.00026876,2]
[357932965,1744595432456,-500.0,0.00026876,2]
[357932967,1744595432464,-500.0,0.00026876,2]
[357932969,1744595432474,-500.0,0.00026876,2]
[357932971,1744595432483,-500.0,0.00026876,2]
[357932973,1744595432493,-500.0,0.00026876,2]
[357932975,1744595432502,-500.0,0.00026876,2]
[357932977,1744595432512,-500.0,0.00026876,2]
[357932978,1744595432522,-500.0,0.00026876,2]
[357932979,1744595432531,-500.0,0.00026876,2]
[357932981,1744595432541,-500.0,0.00026876,2]
[357932983,1744595432552,-500.0,0.00026876,2]
[357932985,1744595432561,-500.0,0.00026876,2]
[357932986,1744595432570,-500.0,0.00026876,2]
[357932988,1744595432580,-500.0,0.00026876,2]
[357932990,1744595432590,-500.0,0.00026876,2]
[357932992,1744595432599,-500.0,0.00026876,2]
[357932994,1744595432608,-500.0,0.00026876,2]
[357932995,1744595432618,-500.0,0.00026876,2]
[357932996,1744595432628,-500.0,0.00026876,2]
[357932997,1744595432637,-500.0,0.00026876,2]
[357932998,1744595432647,-500.0,0.00026876,2]
[357932999,1744595432656,-500.0,0.00026876,2]
[357933000,1744595432667,-500.0,0.00026876,2]
[357933001,1744595432677,-500.0,0.00026876,2]
[357933002,1744595432686,-500.0,0.00026876,2]
[357933003,1744595432696,-500.0,0.00026876,2]
[357933004,1744595432706,-500.0,0.00026876,2]
[357933005,1744595432715,-294.0263353,0.00026876,2]
[357933006,1744595432726,-500.0,0.00026876,2]
[357933007,1744595432735,-500.0,0.00026876,2]
[357933008,1744595432744,-500.0,0.00026876,2]
[357933009,1744595432757,-500.0,0.00026876,2]
[357933010,1744595432773,-500.0,0.00026876,2]
[357933011,1744595432782,-500.0,0.00026876,2]
[357933012,1744595432793,-229.40263353,0.00026876,2]
[357933013,1744595432803,-500.0,0.00026876,2]
[357933014,1744595432812,-500.0,0.00026876,2]
[357933015,1744595432822,-500.0,0.00026876,2]
[357933016,1744595432831,-500.0,0.00026876,2]
[357933017,1744595432840,-500.0,0.00026876,2]
[357933018,1744595432850,-500.0,0.00026876,2]
[357933019,1744595432859,-500.0,0.00026876,2]
[357933020,1744595432869,-500.0,0.00026876,2]
[357933021,1744595432878,-500.0,0.00026876,2]
[357933022,1744595432888,-500.0,0.00026876,2]
[357933023,1744595432897,-500.0,0.00026876,2]
[357933024,1744595432906,-500.0,0.00026876,2]
[357933025,1744595432915,-500.0,0.00026876,2]
[357933026,1744595432925,-500.0,0.00026876,2]
[357933027,1744595432934,-500.0,0.00026876,2]
[357933028,1744595432943,-500.0,0.00026876,2]
[357933029,1744595432953,-300.0,0.00026876,2]
[357933030,1744595432962,-128.9881589,0.00026877,2]
[357933031,1744595432975,-548.09517443,0.00026877,2]
[357933032,1744595432984,-263.16980066,0.000269,7]
[357933033,1744595432995,-151.0,0.00026904,2]
[357933034,1744595433004,-207.4,0.00026904,2]
[357933035,1744595433015,-151.0,0.00026939,2]
[357933036,1744595433025,-151.0,0.00026939,2]
[357933037,1744595433035,-1899.0,0.00027,2]
[357933038,1744595433046,-173.0,0.00027,2]
[357933039,1744595433056,-500.0,0.00027023,2]
[357933040,1744595433066,-500.0,0.00027091,2]
[357933041,1744595433076,-263.16980044,0.00027348,7]
[357933042,1744595433086,-500.0,0.00027397,2]
[357933043,1744595433095,-500.0,0.00027397,2]
[357933044,1744595433105,-500.0,0.00027397,2]
[357933045,1744595433115,-505.48314656,0.00027397,2]
[357933046,1744595433124,-171.56439618,0.00027397,2]
[357933047,1744595433134,-500.0,0.00027397,2]
[357933048,1744595433143,-500.0,0.00027397,2]
[357933049,1744595433153,-500.0,0.00027397,2]
[357933050,1744595433163,-502.49216982,0.00027397,2]
[357933051,1744595433173,-468.04680634,0.00027397,2]
[357933052,1744595433183,-500.0,0.00027397,2]
[357933053,1744595433194,-505.17289808,0.00027397,2]
[357933054,1744595433204,-462.81729292,0.00027397,2]
[357933055,1744595433214,-248.30581861,0.00027397,2]
[357933056,1744595433223,-151.68960733,0.00027397,2]
[357933057,1744595433234,-500.0,0.00027397,2]
[357933058,1744595433244,-190.67554446,0.00027397,2]
[357933059,1744595433254,-242.80311012,0.00027397,2]
[357933060,1744595433265,-156.2394431,0.00027397,2]
[357933061,1744595433275,-607.33,0.00027397,2]
[357933062,1744595433285,-515.14980782,0.00027397,2]
[357933063,1744595433295,-199.82550726,0.00027397,2]
[357933064,1744595433305,-297.55867614,0.00027397,2]
[357933065,1744595433314,-192.48709375,0.00027397,2]
[357933066,1744595433324,-375.98447403,0.00027397,2]
[357933067,1744595433333,-285.82525554,0.00027397,2]
[357933068,1744595433343,-230.30302062,0.00027397,2]
[357933069,1744595433353,-507.50633974,0.00027397,2]
[357933070,1744595433363,-503.53670031,0.00027397,2]
[357933071,1744595433372,-502.59022512,0.00027397,2]
[357933072,1744595433382,-510.19923849,0.00027397,2]
[357933073,1744595433392,-500.0,0.00027397,5]
[357933074,1744595433401,-500.0,0.00027418,2]
[357933075,1744595433411,-151.0,0.00027487,2]
[357933076,1744595433420,-180.3588584,0.000275,120]
[357933077,1744595433430,-500.0,0.00027573,2]
[357933078,1744595433440,-502.37522719,0.00027603,5]
[357933079,1744595433449,-507.87006623,0.00027603,5]
[357933080,1744595433459,-500.0,0.00027603,5]
[357933081,1744595433469,-677.06685091,0.00027617,2]
[357933082,1744595433479,-503.05878886,0.00027618,5]
[357933083,1744595433490,-500.0,0.00027618,5]
[357933084,1744595433499,-500.0,0.00027618,2]
[357933085,1744595433508,-500.0,0.00027618,5]
[357933086,1744595433518,-500.0,0.00027618,5]
[357933087,1744595433528,-501.24224799,0.00027618,5]
[357933088,1744595433538,-512.66072388,0.00027618,5]
[357933089,1744595433548,-505.94411561,0.00027618,5]
[357933090,1744595433558,-500.0,0.00027618,5]
[357933091,1744595433569,-500.0,0.00027624,2]
[357933092,1744595433580,-505.02375981,0.00027693,5]
[357933093,1744595433590,-630.01216524,0.00027693,5]
[357933094,1744595433599,-500.0,0.00027722,2]
[357933095,1744595433609,-500.0,0.00027796,7]
[357933096,1744595433619,-263.16980044,0.00027797,7]
[357933097,1744595433628,-503.97674474,0.00027846,5]
[357933098,1744595433638,-389.40426128,0.00027846,4]
[357933099,1744595433648,-500.0,0.00027851,7]
[357933100,1744595433658,-500.0,0.00027887,5]
[357933101,1744595433668,-500.0,0.00027906,7]
[357933102,1744595433677,-500.0,0.0002796,7]
[357933103,1744595433687,-160.0,0.00028,3]
[357933104,1744595433697,-500.0,0.00028015,7]
[357933105,1744595433706,-151.69629094,0.00028035,2]
[357933106,1744595433716,-500.0,0.0002807,7]
[357933107,1744595433726,-500.0,0.00028125,7]
[357933108,1744595433736,-500.0,0.0002818,7]
[357933109,1744595433745,-1000.0,0.000282,2]
[357933110,1744595433755,-1000.0,0.000282,2]
[357933111,1744595433766,-1000.0,0.000282,2]
[357933112,1744595433777,-1000.0,0.000282,2]
[357933113,1744595433787,-1000.0,0.000282,2]
[357933114,1744595433797,-1000.0,0.000282,2]
[357933115,1744595433807,-1000.0,0.000282,2]
[357933116,1744595433816,-1000.0,0.000282,2]
[357933117,1744595433825,-1000.0,0.000282,2]
[357933118,1744595433835,-1000.0,0.000282,2]
[357933119,1744595433846,-500.0,0.00028234,7]
[357933120,1744595433855,-263.16980044,0.00028245,7]
[357933121,1744595433865,-500.0,0.00028289,7]
[357933122,1744595433875,-500.0,0.00028344,7]
[357933123,1744595433886,-2683.5159952,0.0002839,2]
[357933124,1744595433897,-151.0,0.0002839,7]
[357933125,1744595433907,-151.0,0.0002839,2]
[357933126,1744595433918,-500.0,0.00028399,7]
[357933127,1744595433928,-500.0,0.00028454,7]
[357933128,1744595433938,-500.0,0.00028473,5]
[357933129,1744595433948,-500.0,0.00028473,5]
[357933130,1744595433958,-500.0,0.00028473,5]
[357933131,1744595433968,-500.0,0.00028473,5]
[357933132,1744595433978,-500.0,0.00028473,5]
[357933133,1744595433988,-500.0,0.00028473,5]
[357933134,1744595433998,-290.80602763,0.00028473,5]
[357933135,1744595434007,-347.1079213,0.0002848,2]
[357933136,1744595434017,-1388.4316852,0.0002848,2]
[357933137,1744595434028,-3393.78594702,0.00028489,3]
[357933138,1744595434037,-59915.04610516,0.0002849,2]
[357933167,1744595438511,-500.0,0.00027602,2]
[357933168,1744595438522,-152.44812494,0.00027602,2]
[357933169,1744595438531,-3114.246777,0.0002849,2]
[357933205,1744595440553,-6735.62765931,0.0002849,2]
[357933207,1744595440564,-38960.25096021,0.0002849,2]
[357933208,1744595440576,-929.06,0.0002849,2]
[357933210,1744595440588,-1352.64554896,0.0002849,2]
[357933214,1744595440622,-650.05137088,0.0002849,2]
[357933235,1744595443399,-183.88189415,0.00026858,2]
[357933236,1744595443410,-2255.72901654,0.0002849,2]
[357933237,1744595443421,-450.00106204,0.0002849,2]
[357933238,1744595443433,-1364.26537925,0.0002849,2]
[357933283,1744595446325,-443.970125,0.0002849,2]
[357933284,1744595446405,-353.0720424,0.0002849,2]
[357933285,1744595446418,-6160.0,0.0002849,2]
[357933286,1744595446430,-281787.26240425,0.0002849,2]
[357933287,1744595446442,-4519.94841129,0.0002849,2]
[357933323,1744596632417,-151.0,0.00025607,2]
[357933325,1744596632427,-207.4,0.00025607,2]
[357933327,1744596632437,-300.0,0.00025619,2]
[357933329,1744596632446,-300.0,0.00025619,2]
[357933331,1744596632455,-5139.43069759,0.0002562,2]
[357933333,1744596632467,-13738.44190553,0.0002562,2]
[357933335,1744596632477,-500.0,0.0002562,2]
[357933337,1744596632487,-500.0,0.0002562,2]
[357933339,1744596632497,-500.0,0.0002562,2]
[357933341,1744596632507,-500.0,0.0002562,2]
[357933343,1744596632516,-500.0,0.0002562,2]
[357933345,1744596632526,-500.0,0.0002562,2]
[357933347,1744596632535,-500.0,0.0002562,2]
[357933349,1744596632544,-500.0,0.0002562,2]
[357933351,1744596632554,-500.0,0.0002562,2]
[357933353,1744596632565,-500.0,0.0002562,2]
[357933355,1744596632575,-500.0,0.0002562,2]
[357933357,1744596632589,-500.0,0.0002562,2]
[357933359,1744596632598,-500.0,0.0002562,2]
[357933361,1744596632608,-500.0,0.0002562,2]
[357933363,1744596632617,-500.0,0.0002562,2]
[357933365,1744596632630,-500.0,0.0002562,2]
[357933367,1744596632639,-500.0,0.0002562,2]
[357933369,1744596632649,-500.0,0.0002562,2]
[357933370,1744596632659,-500.0,0.0002562,2]
[357933371,1744596632669,-500.0,0.0002562,2]
[357933372,1744596632678,-500.0,0.0002562,2]
[357933373,1744596632689,-500.0,0.0002562,2]
[357933374,1744596632698,-500.0,0.0002562,2]
[357933375,1744596632708,-500.0,0.0002562,2]
[357933376,1744596632718,-500.0,0.0002562,2]
[357933377,1744596632728,-500.0,0.0002562,2]
[357933378,1744596632738,-500.0,0.0002562,2]
[357933379,1744596632747,-500.0,0.0002562,2]
[357933380,1744596632757,-500.0,0.0002562,2]
[357933381,1744596632767,-500.0,0.0002562,2]
[357933382,1744596632927,-500.0,0.0002562,2]
[357933383,1744596632938,-500.0,0.0002562,2]
[357933384,1744596632948,-500.0,0.0002562,2]
[357933385,1744596632958,-500.0,0.0002562,2]
[357933386,1744596632968,-500.0,0.0002562,2]
[357933387,1744596632979,-500.0,0.0002562,2]
[357933388,1744596632989,-500.0,0.0002562,2]
[357933389,1744596632999,-500.0,0.0002562,2]
[357933390,1744596633008,-500.0,0.0002562,2]
[357933391,1744596633018,-500.0,0.0002562,2]
[357933392,1744596633030,-500.0,0.0002562,2]
[357933393,1744596633040,-500.0,0.0002562,2]
[357933394,1744596633050,-500.0,0.0002562,2]
[357933395,1744596633062,-500.0,0.0002562,2]
[357933396,1744596633073,-500.0,0.0002562,2]
[357933397,1744596633084,-500.0,0.0002562,2]
[357933398,1744596633096,-500.0,0.0002562,2]
[357933399,1744596633107,-500.0,0.0002562,2]
[357933400,1744596633120,-500.0,0.0002562,2]
[357933401,1744596633131,-500.0,0.0002562,2]
[357933402,1744596633142,-500.0,0.0002562,2]
[357933403,1744596633152,-500.0,0.0002562,2]
[357933404,1744596633163,-500.0,0.0002562,2]
[357933405,1744596633173,-500.0,0.0002562,2]
[357933406,1744596633183,-500.0,0.0002562,2]
[357933407,1744596633194,-500.0,0.0002562,2]
[357933408,1744596633204,-500.0,0.0002562,2]
[357933409,1744596633213,-500.0,0.0002562,2]
[357933410,1744596633222,-500.0,0.0002562,2]
[357933411,1744596633232,-500.0,0.0002562,2]
[357933412,1744596633242,-500.0,0.0002562,2]
[357933413,1744596633253,-500.0,0.0002562,2]
[357933414,1744596633262,-500.0,0.0002562,2]
[357933415,1744596633272,-500.0,0.0002562,2]
[357933416,1744596633281,-500.0,0.0002562,2]
[357933417,1744596633291,-500.0,0.0002562,2]
[357933418,1744596633300,-500.0,0.0002562,2]
[357933419,1744596633310,-500.0,0.0002562,2]
[357933420,1744596633320,-418.16046801,0.0002562,2]
[357933421,1744596633330,-500.0,0.0002562,2]
[357933422,1744596633340,-500.0,0.0002562,2]
[357933423,1744596633350,-500.0,0.0002562,2]
[357933424,1744596633361,-500.0,0.0002562,2]
[357933425,1744596633371,-500.0,0.0002562,2]
[357933426,1744596633381,-500.0,0.0002562,2]
[357933427,1744596633391,-500.0,0.0002562,2]
[357933428,1744596633401,-500.0,0.0002562,2]
[357933429,1744596633411,-500.0,0.0002562,2]
[357933430,1744596633421,-500.0,0.0002562,2]
[357933431,1744596633431,-500.0,0.0002562,2]
[357933432,1744596633441,-500.0,0.0002562,2]
[357933433,1744596633451,-499.99999999,0.0002562,2]
[357933434,1744596633461,-500.0,0.00025622,2]
[357933435,1744596633472,-166.98140381,0.00025622,2]
[357933436,1744596633482,-22322.0375075,0.00025623,2]
[357933437,1744596633493,-934.61814696,0.00025682,2]
[357933438,1744596633503,-160.0,0.00025742,2]
[357933439,1744596633512,-272.55198691,0.00025782,2]
[357933440,1744596633523,-500.0,0.00026113,2]
[357933441,1744596633533,-500.0,0.00026161,2]
[357933442,1744596633544,-500.0,0.00026447,2]
[357933443,1744596633554,-500.0,0.0002646,2]
[357933444,1744596633566,-500.0,0.0002656,2]
[357933445,1744596633579,-837.59699578,0.00026718,2]
[357933446,1744596633591,-346.67254117,0.00026718,2]
[357933447,1744596633600,-160.0,0.00026718,2]
[357933448,1744596633610,-500.0,0.00026794,2]
[357933449,1744596633622,-151.0,0.00026836,2]
[357933450,1744596633632,-500.0,0.00026852,2]
[357933451,1744596633642,-156.587,0.00026891,2]
[357933452,1744596633652,-290.53696372,0.000269,7]
[357933453,1744596633663,-500.0,0.00026907,2]
[357933454,1744596633673,-502.2943749,0.00026942,2]
[357933455,1744596633683,-500.0,0.00026942,2]
[357933456,1744596633692,-503.33979177,0.00026942,2]
[357933457,1744596633702,-500.0,0.00026942,2]
[357933458,1744596633712,-505.79292028,0.00026942,2]
[357933459,1744596633722,-476.55720088,0.00026942,2]
[357933460,1744596633732,-501.57118886,0.00026942,2]
[357933461,1744596633743,-500.0,0.00026942,2]
[357933462,1744596633752,-501.72110633,0.00026942,2]
[357933463,1744596633763,-501.42247813,0.00026942,2]
[357933464,1744596633773,-500.0,0.00026942,2]
[357933465,1744596633783,-500.0,0.00026942,2]
[357933466,1744596633793,-162.380719,0.00026946,2]
[357933467,1744596633804,-500.93942762,0.00026962,2]
[357933468,1744596633819,-500.0,0.00026962,2]
[357933469,1744596633830,-507.34242662,0.00026972,2]
[357933470,1744596633840,-168.3888056,0.00027001,2]
[357933471,1744596633851,-502.33581395,0.00027013,2]
[357933472,1744596633861,-394.73760968,0.00027013,2]
[357933473,1744596633872,-500.0,0.00027013,2]
[357933474,1744596633883,-7205.58476863,0.00027056,2]
[357933475,1744596633894,-174.61919141,0.00027056,2]
[357933476,1744596633905,-353.58533077,0.00027066,2]
[357933477,1744596633916,-168.29675889,0.00027066,2]
[357933478,1744596633926,-500.0,0.00027066,2]
[357933479,1744596633937,-502.95133448,0.00027066,2]
[357933480,1744596633949,-264.52580445,0.00027094,2]
[357933481,1744596633959,-504.14771192,0.00027094,2]
[357933482,1744596633970,-500.0,0.00027094,2]
[357933483,1744596633980,-500.97845386,0.00027094,2]
[357933484,1744596633991,-181.08010149,0.00027111,2]
[357933485,1744596634002,-501.31561381,0.00027135,2]
[357933486,1744596634012,-502.07554892,0.00027135,2]
[357933487,1744596634023,-500.66128359,0.00027135,2]
[357933488,1744596634035,-501.26633866,0.00027135,2]
[357933489,1744596634046,-502.65937861,0.00027135,2]
[357933490,1744596634056,-367.52049261,0.00027135,2]
[357933491,1744596634072,-260.27214646,0.00027135,2]
[357933492,1744596634083,-503.90249477,0.00027135,2]
[357933493,1744596634093,-462.58605086,0.00027135,2]
[357933494,1744596634104,-500.55997672,0.00027135,2]
[357933495,1744596634115,-500.0,0.00027156,2]
[357933496,1744596634125,-382.5079929,0.00027166,2]
[357933497,1744596634136,-500.0,0.00027272,2]
[357933498,1744596634146,-501.31688259,0.00027287,2]
[357933499,1744596634157,-155.62101483,0.00027287,2]
[357933500,1744596634167,-158.30383775,0.00027287,2]
[357933501,1744596634177,-500.0,0.00027287,2]
[357933502,1744596634187,-290.53696349,0.00027348,7]
[357933503,1744596634198,-500.0,0.00027397,2]
[357933504,1744596634208,-500.0,0.00027397,2]
[357933505,1744596634218,-500.0,0.00027397,2]
[357933506,1744596634228,-153.85007886,0.00027397,2]
[357933507,1744596634238,-184.58835249,0.00027397,2]
[357933508,1744596634248,-500.0,0.00027397,2]
[357933509,1744596634258,-500.0,0.00027397,2]
[357933510,1744596634268,-564.97337484,0.00027397,2]
[357933511,1744596634279,-582.02,0.00027397,2]
[357933512,1744596634289,-500.0,0.00027397,2]
[357933513,1744596634299,-500.0,0.00027397,5]
[357933514,1744596634309,-500.0,0.0002749,2]
[357933515,1744596634323,-500.0,0.00027548,2]
[357933516,1744596634333,-500.61089274,0.00027597,5]
[357933517,1744596634343,-152.859872,0.00027597,7]
[357933518,1744596634353,-500.0,0.00027644,5]
[357933519,1744596634363,-566.31700854,0.00027644,5]
[357933520,1744596634372,-501.22118086,0.00027663,5]
[357933521,1744596634382,-509.74242756,0.00027663,4]
[357933522,1744596634391,-500.0,0.00027669,5]
[357933523,1744596634401,-501.07483568,0.00027671,5]
[357933524,1744596634411,-501.96007776,0.00027671,5]
[357933525,1744596634421,-501.57360054,0.00027671,2]
[357933526,1744596634431,-500.0,0.00027671,5]
[357933527,1744596634440,-420.0,0.00027736,2]
[357933528,1744596634450,-290.53696349,0.00027797,7]
[357933529,1744596634460,-468.87962676,0.00027805,2]
[357933530,1744596634470,-151.0,0.00027805,7]
[357933531,1744596634481,-420.0,0.00027861,2]
[357933532,1744596634491,-154.820373,0.00027887,7]
[357933533,1744596634500,-500.0,0.00027892,2]
[357933534,1744596634510,-160.26374028,0.00027897,5]
[357933535,1744596634519,-151.0,0.00027952,2]
[357933536,1744596634529,-151.0,0.00027952,2]
[357933537,1744596634539,-167.937528,0.00027952,7]
[357933538,1744596634548,-200.0,0.00028,2]
[357933539,1744596634558,-500.0,0.00028136,2]
[357933540,1744596634570,-290.53696349,0.00028245,7]
[357933541,1744596634581,-500.0,0.00028328,2]
[357933542,1744596634591,-500.0,0.00028422,2]
[357933543,1744596634600,-500.77398563,0.0002845,2]
[357933544,1744596634610,-151.0,0.0002849,2]
[357933545,1744596634619,-151.0,0.0002849,2]
[357933546,1744596634630,-278.668,0.0002859,2]
[357933547,1744596634639,-500.0,0.0002859,2]
[357933548,1744596634649,-500.0,0.00028616,2]
[357933549,1744596634660,-500.0,0.00028626,2]
[357933550,1744596634670,-183.66215961,0.00028689,2]
[357933551,1744596634679,-176.69761266,0.00028689,2]
[357933552,1744596634688,-290.53696349,0.00028693,8]
[357933553,1744596634697,-192.0,0.000287,7]
[357933554,1744596634707,-192.0,0.000287,2]
[357933555,1744596634716,-192.0,0.000287,4]
[357933556,1744596634726,-2436.28,0.0002879,2]
[357933557,1744596634735,-151.0,0.0002879,2]
[357933558,1744596634745,-183.40550421,0.00028793,20]
[357933559,1744596634754,-157.28205469,0.00028793,20]
[357933560,1744596634763,-447.17,0.000289,2]
[357933561,1744596634774,-7205.58476863,0.00028934,2]
[357933562,1744596634784,-151.0,0.00028938,7]
[357933563,1744596634794,-4058.89518,0.00028943,2]
[357933564,1744596634803,-151.0,0.00028944,2]
[357933565,1744596634812,-151.0,0.00028944,2]
[357933567,1744596634821,-151.0,0.00028944,2]
[357933568,1744596634831,-262.761935,0.00028944,7]
[357933570,1744596634841,-33182.54706765,0.00028945,2]
[357933571,1744596634851,-500.0,0.00028947,2]
[357933572,1744596634860,-7205.58476863,0.00028958,2]
[357933573,1744596634870,-151.0,0.00028968,2]
[357933574,1744596634879,-151.0,0.00028968,2]
[357933575,1744596634888,-151.0,0.00028968,2]
[357933576,1744596634898,-33182.54706765,0.00028968,2]
[357933577,1744596634907,-7205.58476863,0.0002899,2]
[357933578,1744596634917,-33182.54706765,0.00028996,2]
[357933579,1744596634926,-151.0,0.00028996,2]